Cogmind - Beta 15 @@@ ROGUE MODE // 2025.10.06 @ 02:17:22 Player: shapeshifter Result: Destroyed by B-99 Colossus with Linear Accelerator Performance ------------- Evolutions (9) 4500 Regions Visited (25) 5000 Robots Destroyed (276) 1380 Value Destroyed (14844) 14844 Prototype IDs (41) 820 Alien Tech Used (3) 600 Bonus (8869) 8869 TOTAL SCORE: 36013 Bonus ------- High Alert Combat Kills 675 Follower Combat Kills 154 Entered DSFs 500 Met Data Miner 300 Acquired ECA 300 Met Warlord at Base 500 MAIN.C Attacked Warlord 500 Warlord Defense Kills 1984 Met Warlord at Research 2000 Invited to Help at Command 2000 Friendly Fire -44 Cogmind --------- Core Integrity 0/1600 Matter 25/300 Energy 28/100 System Corruption 0% Temperature Cool (0) Movement Core (50) Location -1/Access Parts ------- > --- POWER (3) -------- (None) > --- PROPULSION (6) --- (None) > --- UTILITY (10) ----- (None) > --- WEAPON (6) ------- (None) > --- INVENTORY (5) ---- Core Cannon Core Stripper Peak State ------------ > --- POWER ------------ Light Antimatter Reactor Light Particle Reactor > --- PROPULSION ------- Spiked Heavy Treads Spiked Heavy Treads Advanced Heavy Treads > --- UTILITY ---------- Advanced Heat Sink Advanced Heat Sink Huge Storage Unit Advanced Energy Well Experimental Targeting Computer Advanced Target Analyzer Transmission Jammer Advanced Force Field Experimental Hacking Suite > --- WEAPON ----------- Enhanced Nova Cannon Enhanced Nova Cannon Enhanced Nova Cannon Enhanced Nova Cannon Disintegrator > --- INVENTORY -------- Light Quantum Reactor Light Quantum Reactor Vortex Chain Reactor Advanced Heavy Siege Treads Advanced Energy Well Improved Core Shielding Terrabomb Vortex Driver Vortex Driver Cooled Nova Cannon BFG-9k Vortex Edition Omega Cannon Vortex Catalyst Activator RU-N14's Throwing Claymores v3 [Rating: 197] Favorites ----------- Power Light Quantum Reactor Engine Improved Deuterium Engine Power Core Micro Fission Core Reactor Light Quantum Reactor Propulsion Medium Treads Treads Medium Treads Leg Thunder Leg Wheel Wheel Utility Experimental Targeting Computer Device Advanced Heat Sink Storage Huge Storage Unit Processor Experimental Targeting Computer Hackware Experimental Hacking Suite Protection Hardened Medium Armor Plating Weapon Hypervelocity Railgun Energy Gun Improved Heavy Laser Energy Cannon Enhanced Nova Cannon Ballistic Gun Hypervelocity Railgun Ballistic Cannon Omega Cannon Launcher Mini Smartbomb Launcher Special Weapon RU-N14's Throwing Claymores v3 Build | -11 -10 -10 -10 -9 -8 -7 -7 -7 -7 -6 -6 -6 -5 -5 -5 -5 -4 -4 -4 -4 -3 -3 -2 -2 -1 ------- Run | Yrd Mat Min Exi Min Mat Fac Low Low Dat Pro Fac DSF Fac Upp Upp War Pro Fac Arm Lab Res Tes Res Qua Acc Slots Evolved 18 | . . . . . 4 2 . . . . 2 . 2 . . . . 2 . . 2 . 2 . 2 Power 2 | . . . . . . . . . . . 1 . . . . . . . . . . . . . 1 Propulsion 4 | . . . . . 1 1 . . . . . . . . . . . 1 . . 1 . . . . Utility 8 | . . . . . 2 1 . . . . 1 . 1 . . . . 1 . . 1 . . . 1 Weapon 4 | . . . . . 1 . . . . . . . 1 . . . . . . . . . 2 . . Parts Attached 256 | 6 7 . . . 25 10 . 2 . 6 1 20 21 3 . 27 . 23 23 . 11 25 13 26 7 Power 31 | 1 1 . . . 2 . . 1 . 1 . 4 1 2 . 1 . 2 3 . . 5 . 5 2 Engine 9 | 1 1 . . . 1 . . . . 1 . 1 1 1 . 1 . 1 . . . . . . . Core 7 | . . . . . 1 . . 1 . . . 3 . 1 . . . 1 . . . . . . . Reactor 15 | . . . . . . . . . . . . . . . . . . . 3 . . 5 . 5 2 Propulsion 61 | 2 2 . . . 5 3 . . . 1 . 5 6 1 . 8 . 4 4 . 2 3 6 8 1 Treads 38 | 2 . . . . 4 3 . . . 1 . 5 2 . . . . . 4 . 2 3 6 6 . Leg 19 | . . . . . . . . . . . . . 4 1 . 8 . 4 . . . . . 2 . Wheel 4 | . 2 . . . 1 . . . . . . . . . . . . . . . . . . . 1 Hover . | . . . . . . . . . . . . . . . . . . . . . . . . . . Flight . | . . . . . . . . . . . . . . . . . . . . . . . . . . Utility 85 | 1 3 . . . 9 5 . . . 2 1 4 8 . . 7 . 10 5 . 8 9 2 9 2 Device 40 | . 1 . . . 4 2 . . . 1 . 4 3 . . 3 . 6 2 . 4 4 1 4 1 Storage 8 | 1 2 . . . . 1 . . . . . . . . . . . 1 . . . . 1 2 . Processor 12 | . . . . . . 1 . . . . . . 2 . . 2 . 2 . . 2 2 . 1 . Hackware 3 | . . . . . . . . . . . . . 2 . . . . . . . . 1 . . . Protection 22 | . . . . . 5 1 . . . 1 1 . 1 . . 2 . 1 3 . 2 2 . 2 1 Artifact . | . . . . . . . . . . . . . . . . . . . . . . . . . . Weapon 79 | 2 1 . . . 9 2 . 1 . 2 . 7 6 . . 11 . 7 11 . 1 8 5 4 2 Energy Gun 17 | . . . . . 2 1 . . . 1 . 3 4 . . 2 . . . . . 3 1 . . Energy Cannon 22 | . . . . . 2 . . . . . . . 2 . . 4 . . 1 . 1 5 2 4 1 Ballistic Gun 26 | 2 1 . . . 4 1 . . . 1 . 4 . . . . . 4 9 . . . . . . Ballistic Cannon 1 | . . . . . . . . . . . . . . . . . . . . . . . 1 . . Launcher 5 | . . . . . 1 . . . . . . . . . . . . 1 1 . . . 1 . 1 Special Weapon 8 | . . . . . . . . 1 . . . . . . . 5 . 2 . . . . . . . Impact Weapon . | . . . . . . . . . . . . . . . . . . . . . . . . . . Slashing Weapon . | . . . . . . . . . . . . . . . . . . . . . . . . . . Piercing Weapon . | . . . . . . . . . . . . . . . . . . . . . . . . . . Special Melee Weapon . | . . . . . . . . . . . . . . . . . . . . . . . . . . Unidentified Prototypes 29 | . . . . . 1 1 . . . . . . 1 . . 11 . 1 1 . . 6 3 1 3 Corrupted Parts 2 | . . . . . . 1 . . . . . . . . . . . . . . . . 1 . . System Corruption 9 | . . . . . . 5 . . . . . . . . . . . . . . . . 4 . . Parts Lost 94 | . 1 . . . 7 1 . 1 . 3 . 3 7 2 1 1 1 12 2 . 4 13 . 19 16 Power 17 | . . . . . 2 . . . . . . 1 1 2 1 . . 2 . . . 3 . 2 3 Propulsion 27 | . 1 . . . 3 1 . . . 2 . . 3 . . . . 5 . . . 4 . 4 4 Utility 39 | . . . . . 1 . . . . 1 . 1 2 . . 1 1 4 2 . 4 5 . 9 8 Weapon 11 | . . . . . 1 . . 1 . . . 1 1 . . . . 1 . . . 1 . 4 1 Highest Loss Streak 13 | . 1 . . . 6 1 . 1 . 2 . 2 3 2 1 1 1 12 1 . 2 5 . 9 13 To Critical Strikes 4 | . . . . . . . . . . 1 . . . . . . . . . . . 1 . . 2 Average Backups 15 | 3 8 11 14 15 14 15 20 20 20 18 19 19 17 19 18 16 12 14 17 18 16 16 15 14 11 Power 1 | . 1 2 3 4 2 1 2 2 1 1 2 . . 1 . . 1 1 2 3 3 2 3 1 1 Propulsion . | 1 2 1 1 1 . . . . . . . 1 2 3 3 2 1 1 . . . . . . . Utility 4 | . 3 6 8 8 8 8 11 11 11 10 10 9 6 6 6 3 3 4 2 3 1 1 2 2 . Weapon 6 | 1 1 2 2 2 2 3 5 5 7 4 5 5 5 5 5 7 7 8 11 12 12 11 9 8 7 Tool/Special . | . . . . . . . . . . . . . . . . . . . . . . . . . . Unused Backups 59 | . 2 1 1 . 17 5 1 . . . . . 9 1 . 4 1 . 9 . 1 3 1 . 3 Power 10 | . . . 1 . 3 . . . . . . . . . . . 1 . 2 . . 1 1 . 1 Propulsion 4 | . 2 . . . . . . . . . . . 1 . . . . . 1 . . . . . . Utility 24 | . . . . . 12 3 1 . . . . . 5 1 . 1 . . . . 1 . . . . Weapon 18 | . . 1 . . 2 2 . . . . . . 3 . . 1 . . 6 . . 2 . . 1 Tool/Special 3 | . . . . . . . . . . . . . . . . 2 . . . . . . . . 1 Average Slot Usage (%) 86 | . 99 100 100 100 84 96 100 98 84 92 82 91 98 98 99 97 82 80 87 84 81 82 80 59 51 Engine 4 | . 14 14 14 14 6 7 7 7 . . . 4 4 5 4 4 5 2 . . . . . . . Core 1 | . . . . . 2 . . . 7 7 6 6 5 4 5 5 5 5 . . . . . . . Reactor 3 | . . . . . . . . . . . . . . . . . . . 8 10 8 8 8 6 6 Treads 13 | . 22 . . . 20 28 30 30 30 24 20 24 19 . . . . . 12 15 18 16 19 8 8 Leg 4 | . . . . . . . . . . . . . 3 23 23 23 23 23 3 . . . . . . Wheel 2 | . 5 28 28 28 1 . . . . . . . . . . . . . . . . . . . 1 Device 13 | . 14 14 14 14 11 19 15 14 15 14 13 14 16 11 11 14 11 8 14 10 9 15 17 9 4 Storage 7 | . 14 14 14 14 9 7 7 7 7 7 6 6 5 5 5 5 5 5 5 5 4 4 7 8 7 Processor 8 | . . . . . . 1 7 7 7 7 6 6 8 17 17 13 11 19 13 10 10 11 8 8 7 Protection 4 | . . . . . 9 7 7 7 7 7 8 5 2 5 5 5 5 3 6 10 8 5 . 1 9 Energy Gun 4 | . . . . . 5 . . . . 2 . 1 21 23 23 15 11 5 . . . . 4 1 . Energy Cannon 2 | . . . . . 5 . . . . . . . 1 . . 1 . . . 5 . 4 9 9 3 Ballistic Gun 11 | . 28 28 28 28 12 22 23 21 . 20 20 17 . . . . . 3 19 15 18 11 . . . Peak Build Rating 197 | 6 8 9 10 10 31 43 44 44 36 44 46 70 97 94 95 140 119 138 162 152 173 177 186 197 144 Average Rating 92 | 4 7 8 9 10 23 37 43 43 36 42 43 57 81 92 94 114 114 117 150 152 162 149 152 129 113 On Entrance 73 | . 6 8 8 10 10 31 43 44 36 36 43 43 70 93 94 90 111 114 114 152 152 169 145 170 127 Naked Turns 7 | . . . . . . . . . . . . . . . . . . . . . . . . . 7 Heaviest Build 201 | 13 29 29 29 29 49 70 70 70 61 70 67 83 97 91 85 110 98 122 174 171 166 173 174 201 156 Greatest Support 230 | 40 40 20 20 20 60 83 83 83 83 88 68 112 112 92 92 106 106 131 190 190 230 230 220 225 105 Greatest Overweight (x) 45 | . 1 1 1 1 7 . . . . 1 . . 3 . . 1 . 1 1 . . 1 1 45 9 Average Overweight (x) . | . . 1 1 1 . . . . . . . . . . . . . . . . . . . 1 2 Largest Inventory Capacity 25 | 8 15 15 15 15 15 20 20 20 20 20 20 20 20 20 20 20 20 25 25 25 25 25 25 25 25 Average Capacity 20 | 7 11 15 15 15 15 15 20 20 20 20 20 20 20 20 20 20 20 22 25 25 25 25 25 25 24 Most Carried 25 | 7 11 15 15 15 15 20 20 20 20 20 19 20 20 20 19 20 20 25 25 25 25 25 25 25 25 Average Carried 19 | 3 8 12 14 15 14 15 19 19 20 18 18 19 17 19 18 19 19 21 24 25 23 24 24 24 22 Final Capacity 25 | 8 15 15 15 15 15 20 20 20 20 20 20 20 20 20 20 20 20 25 25 25 25 25 25 25 5 Final Carried 25 | 5 11 13 15 15 15 20 20 20 20 20 19 20 20 18 19 19 20 20 25 25 24 24 25 25 4 Class Distribution -------------------- 27% | Gunner 26% | Mutant 21% | Tank 10% | Scavenger-Tank 5% | Scavenger-Gunner 3% | Scavenger-Mutant 3% | Skirmisher Dominant Class ---------------- Mutant | -10/Materials Mutant | -10/Mines Mutant | -10/Exiles Mutant | -9/Mines Scavenger-Tank | -8/Materials Gunner | -7/Factory Gunner | -7/Lower Caves Gunner | -7/Lower Caves Mutant | -7/Data Miner Tank | -6/Proximity Caves Tank | -6/Factory Tank | -6/DSF Gunner | -5/Factory Gunner | -5/Upper Caves Gunner | -5/Upper Caves Gunner | -5/Warlord Mutant | -4/Proximity Caves Mutant | -4/Factory Tank | -4/Armory Tank | -4/Lab Tank | -3/Research Tank | -3/Testing Scavenger-Tank | -2/Research Mutant | -2/Quarantine Mutant | -1/Access Resources | -11 -10 -10 -10 -9 -8 -7 -7 -7 -7 -6 -6 -6 -5 -5 -5 -5 -4 -4 -4 -4 -3 -3 -2 -2 -1 ----------- Run | Yrd Mat Min Exi Min Mat Fac Low Low Dat Pro Fac DSF Fac Upp Upp War Pro Fac Arm Lab Res Tes Res Qua Acc Matter Collected 7990 | 290 291 36 . 8 446 182 42 189 . 415 . 965 265 . 69 400 25 358 1216 . 577 1539 251 411 15 Remotely 977 | . . . . . . . . . . . . . . . . . . 107 870 . . . . . . Salvage Created 13049 | 99 465 132 . 59 1029 467 . 301 . 466 . 887 831 67 118 211 229 481 1166 . 681 2325 577 2269 189 Parts 607 | 8 32 6 . 4 44 25 . 15 . 20 . 42 34 2 1 11 8 18 49 . 54 132 11 83 8 Haulers Intercepted 8 | . 1 . . . 2 1 . . . . . . 1 . . . . . . . . 3 . . . Recyclers Shooed 2 | . . . . . 1 . . . . . . . . . . . . . . . . 1 . . . Parts Field Recycled . | . . . . . . . . . . . . . . . . . . . . . . . . . . Retrieved Matter . | . . . . . . . . . . . . . . . . . . . . . . . . . . Parts Self-Destructed 44 | . . . . . . . . 15 . 15 . . . 2 1 . 11 . . . . . . . . Prevented 5 | . . . . . . . . 2 . . . . . . . . 3 . . . . . . . . Kills | -11 -10 -10 -10 -9 -8 -7 -7 -7 -7 -6 -6 -6 -5 -5 -5 -5 -4 -4 -4 -4 -3 -3 -2 -2 -1 ------- Run | Yrd Mat Min Exi Min Mat Fac Low Low Dat Pro Fac DSF Fac Upp Upp War Pro Fac Arm Lab Res Tes Res Qua Acc Combat Hostiles Destroyed 224 | . 13 5 . 4 15 5 . 7 . 7 . 14 12 1 2 16 5 10 15 . 9 23 10 43 8 Guns 121 | . 13 5 . 4 10 5 . 7 . 7 . 14 12 1 1 . 4 2 12 . 9 15 . . . Cannons 52 | . . . . . 1 . . . . . . . . . . 3 . 1 . . . 8 6 30 3 AOE 44 | . . . . . 3 . . . . . . . . . . 13 1 7 3 . . . 2 10 5 Classes Destroyed 23 | 2 4 . . . 2 2 . . . 3 . 5 . . . 3 . . . . . . . 1 1 Worker 5 | . . . . . 1 2 . . . . . . . . . . . 1 . . . 1 . . . Builder 10 | . . . . . . 2 . . . . . . 1 . . . . 3 . . . 2 . 2 . Tunneler 4 | 2 . . . . . . . . . . . . . . . . . . . . 1 . . . 1 Hauler 8 | . 1 . . . 2 1 . . . . . . 1 . . . . . . . . 3 . . . Recycler 7 | 1 1 . . . 3 . . . . . . . . . . . . 1 . . . 1 . . . Operator 1 | . . . . . . . . . . . . . . . . . . . . . . . . . 1 Watcher 17 | . 3 . . . 3 2 . . . . . . . . . . . 1 4 . 1 2 . 1 . Swarmer 35 | . 9 3 . 4 3 . . 3 . . . . . . . . . . . . 3 . 2 2 6 Saboteur 3 | . . . . . . . . . . . . . . . . 2 . . 1 . . . . . . Grunt 75 | . 4 2 . . 6 3 . 2 . 3 . . 6 . 1 9 2 3 4 . . 7 3 20 . Brawler 2 | . . . . . . . . . . . . . . . . 1 . . . . . . . 1 . Duelist 4 | . . . . . . . . . . 1 . . . 1 . . . . . . . . 1 1 . Sentry 22 | . . . . . 6 1 . 1 . . . . 3 . . . 1 3 4 . 2 1 . . . Specialist 9 | . . . . . . . . . . . . 3 . . . 1 . . 2 . . . . 3 . Hunter 18 | . . . . . . . . . . 2 . . . . 1 . . 2 2 . . 5 1 3 2 Programmer 39 | . . . . . . 1 . 1 . 1 . . 3 . . 1 2 2 2 . 4 10 . 12 . Heavy 1 | . . . . . . . . . . . . 1 . . . . . . . . . . . . . Striker 3 | . . . . . . . . . . . . . . . . 1 . . . . . . 2 . . Executioner 2 | . . . . . . . . . . . . . . . . 1 . . . . . . 1 . . Alpha 7 1 | . . . . . . . . . . . . . . . . . . . . . . . . 1 . Samaritan 2 | . . . . . . . . . . 2 . . . . . . . . . . . . . . . Thug 1 | . . . . . . . . . . . . 1 . . . . . . . . . . . . . Savage 1 | . . . . . . . . . . . . 1 . . . . . . . . . . . . . Butcher 2 | . . . . . . . . . . . . 2 . . . . . . . . . . . . . Guerrilla 1 | . . . . . . . . . . . . 1 . . . . . . . . . . . . . Fireman 1 | . . . . . . . . . . . . 1 . . . . . . . . . . . . . Mutant 4 | . . . . . . . . . . . . 4 . . . . . . . . . . . . . Best Kill Streak 12 | 2 3 3 . 3 5 4 . 3 . 4 . 10 5 1 1 12 3 8 5 . 4 5 4 5 6 Combat Bots Only 12 | . 3 3 . 3 4 2 . 3 . 4 . 10 5 1 1 12 3 8 5 . 4 4 4 5 6 Max Kills in Single Turn 5 | 1 1 1 . 1 3 3 . 2 . 1 . 1 1 1 1 4 1 2 2 . 2 4 2 3 5 Gunslinging 1 | . . . . . 1 . . 1 . . . . . . . . . . . . 1 . . . . Exploded 5 | . . . . . 3 . . . . . . . . . . 4 1 2 2 . . . 2 2 5 Melee . | . . . . . . . . . . . . . . . . . . . . . . . . . . Uniques/NPCs Destroyed . | . . . . . . . . . . . . . . . . . . . . . . . . . . Combat | -11 -10 -10 -10 -9 -8 -7 -7 -7 -7 -6 -6 -6 -5 -5 -5 -5 -4 -4 -4 -4 -3 -3 -2 -2 -1 -------- Run | Yrd Mat Min Exi Min Mat Fac Low Low Dat Pro Fac DSF Fac Upp Upp War Pro Fac Arm Lab Res Tes Res Qua Acc Hostile Shots Fired 2028 | . 76 15 . 11 92 31 . 49 . 53 . 118 104 83 43 13 29 150 300 . 68 208 52 333 200 Missed 721 | . 22 2 . 2 27 9 . 20 . 14 . 41 31 37 18 2 9 49 171 . 26 55 11 117 58 Hits 1307 | . 54 13 . 9 65 22 . 29 . 39 . 77 73 46 25 11 20 101 129 . 42 153 41 216 142 Melee 7 | . . . . . . . . . . . . . 1 . . . . . . . . . 3 3 . Projectile 1300 | . 54 13 . 9 65 22 . 29 . 39 . 77 72 46 25 11 20 101 129 . 42 153 38 213 142 AOE 2 | . 1 . . . . . . . . . . . 1 . . . . . . . . . . . . Critical Strikes 63 | . 1 . . . 3 1 . . . 3 . 7 3 . 1 1 1 6 5 . 3 7 . 15 6 Actively Blocked 4 | . . . . . . . . . . . . . . . . . . . . . 1 2 . 1 . Part Disruptions 4 | . . . . . . . . . . . . 2 1 . . . . . . . . . . 1 . Damage Taken 25198 | . 518 125 . 84 1060 422 . 376 . 542 . 1096 1794 764 466 252 314 2232 1472 . 869 3547 1167 4326 3772 Core 4598 | . 117 52 . 24 144 18 . 29 . 31 . 82 204 40 56 . 60 270 39 . 12 795 611 391 1623 Absorbed by Shields 2396 | . . . . . . . . . . 98 . 385 319 . . . 95 77 456 . 200 . 538 228 . Redirected to Shielding 547 | . . . . . . . . . . . . . 117 . . . . . 7 . 103 219 . 30 71 Ignored by Resistances 399 | . . . . . 19 . . . . . . . . . . 49 . . . . . 331 . . . Regen/Repaired (Parts) 503 | . . . . . . . . . . . . . . . . 331 . . . . . . 172 . . Core Remaining (%) 64 | 100 . . . 22 73 . . . . 88 . 90 . . . . 64 . . 73 . 37 . 30 . Volleys Fired 663 | 10 54 9 . 5 49 13 . 16 . 24 . 40 51 3 5 8 13 38 56 . 21 87 21 109 31 Largest 4 | 2 2 2 . 2 3 3 . 3 . 3 . 3 4 4 4 1 1 4 4 . 4 4 4 4 1 Hottest 484 | 40 40 40 . 40 198 84 . 84 . 136 . 84 280 265 265 . 60 140 160 . 160 428 484 480 120 Shots Fired 1532 | 20 108 18 . 10 112 38 . 46 . 71 . 116 143 11 18 8 13 58 158 . 76 211 61 205 31 Gun 1079 | 20 108 18 . 10 84 38 . 46 . 71 . 116 103 11 18 . 13 47 149 . 73 140 13 1 . Cannon 420 | . . . . . 26 . . . . . . . 40 . . . . . 9 . 3 71 47 195 29 Launcher 14 | . . . . . 2 . . . . . . . . . . . . 4 . . . . 1 5 2 Special 19 | . . . . . . . . . . . . . . . . 8 . 7 . . . . . 4 . Kinetic 843 | 20 108 18 . 10 62 38 . 46 . 53 . 116 . . . . . 27 137 . 73 123 . . 12 Thermal 578 | . . . . . 48 . . . . 18 . . 143 11 18 . . . 6 . 3 88 60 165 18 Explosive 25 | . . . . . 2 . . . . . . . . . . 8 . 11 . . . . . 4 . Electromagnetic . | . . . . . . . . . . . . . . . . . . . . . . . . . . Entropic 86 | . . . . . . . . . . . . . . . . . 13 20 15 . . . 1 36 1 Robot Hit Streak 18 | 6 11 12 . 16 17 4 . 5 . 8 . 12 9 3 6 14 12 15 18 . 12 15 8 16 8 Robot Miss Streak 6 | 3 4 3 . 1 3 2 . 2 . 5 . 3 3 3 1 . 2 6 3 . 2 2 4 3 2 Penetration Max 3 | . . . . . . 1 . . . 1 . 1 . . . . . . 1 . 1 3 . 1 . Secondary Targets 24 | . 1 . . . 2 1 . 2 . 2 . 3 3 1 1 . . . 3 . 3 2 . . . Max Gunslinging Chain 1 | . 1 . . . 1 1 . 1 . 1 . 1 1 1 1 . . . 1 . 1 1 . . . Shots Hit Robots 918 | 11 62 13 . 8 79 21 . 22 . 48 . 76 67 5 14 8 13 38 88 . 46 132 24 118 25 Core Hits 522 | 6 28 7 . 5 37 16 . 10 . 28 . 40 33 2 4 41 11 35 46 . 19 59 16 67 12 Critical Kills 49 | . . . . . . 4 . . . . . 1 . . . . . . 12 . 11 17 1 3 . Critical Parts Destroyed 78 | . . . . . 1 1 . 1 . 1 . 1 . . . . 1 5 25 . 12 30 . . . Critical Strikes 171 | . . . . . 2 5 . 1 . 1 . 2 4 . 2 2 1 5 39 . 24 53 6 23 1 Burn 15 | . . . . . 1 . . . . . . . 4 . 2 . . . . . . 2 5 1 . Meltdown 4 | . . . . . . . . . . . . . . . . . . . . . . . 1 3 . Destroy 121 | . . . . . 1 5 . 1 . 1 . 2 . . . . . 2 34 . 24 51 . . . Blast 1 | . . . . . . . . . . . . . . . . . . . . . . . . . 1 Sever 3 | . . . . . . . . . . . . . . . . 2 . . . . . . . 1 . Detonate 9 | . . . . . . . . . . . . . . . . . 1 3 5 . . . . . . Sunder 18 | . . . . . . . . . . . . . . . . . . . . . . . . 18 . Melee Attacks . | . . . . . . . . . . . . . . . . . . . . . . . . . . Impact . | . . . . . . . . . . . . . . . . . . . . . . . . . . Slashing . | . . . . . . . . . . . . . . . . . . . . . . . . . . Piercing . | . . . . . . . . . . . . . . . . . . . . . . . . . . Sneak Attacks . | . . . . . . . . . . . . . . . . . . . . . . . . . . Combat Hostiles . | . . . . . . . . . . . . . . . . . . . . . . . . . . Follow-up Attacks . | . . . . . . . . . . . . . . . . . . . . . . . . . . Damage Inflicted 39818 | 122 698 146 . 92 1816 624 . 508 . 1039 . 1919 1802 175 356 3396 769 3312 2055 . 462 3347 1835 9763 5582 Guns 13863 | 122 698 146 . 89 881 624 . 508 . 1039 . 1919 1770 175 356 . 699 1279 1329 . 462 1499 238 30 . Cannons 11410 | . . . . . 452 . . . . . . . 32 . . . . . . . . 1789 645 6813 1679 Explosions 13554 | . . . . . 483 . . . . . . . . . . 3055 70 1672 678 . . . 952 2741 3903 Melee . | . . . . . . . . . . . . . . . . . . . . . . . . . . Ramming 170 | . . . . 3 . . . . . . . . . . . . . 60 48 . . 59 . . . Kinetic 9206 | 122 698 146 . 89 632 624 . 508 . 739 . 1919 . . . . . 362 746 . 462 1065 . . 1094 Thermal 15146 | . . . . . 890 . . . . 300 . . 1802 175 356 . . 484 678 . . 2223 883 4084 3271 Explosive 5419 | . . . . . 294 . . . . . . . . . . 3055 . 1188 . . . . 254 628 . Electromagnetic 70 | . . . . . . . . . . . . . . . . . 70 . . . . . . . . Impact . | . . . . . . . . . . . . . . . . . . . . . . . . . . Slashing 821 | . . . . . . . . . . . . . . . . 341 . 301 . . . . . 179 . Piercing . | . . . . . . . . . . . . . . . . . . . . . . . . . . Entropic 8986 | . . . . . . . . . . . . . . . . . 699 917 583 . . . 698 4872 1217 Highest Corruption 20 | . . . . . . 8 8 8 8 8 . . 9 9 9 9 3 1 13 13 4 18 4 20 . Average Corruption 7 | . . . . . . 7 8 8 8 8 . . 6 9 9 3 2 1 7 13 2 10 4 9 . Corruption Purged 1 | . . . . . . . . . . . . . . . . . . . 1 . . . . . . Corruption Blocked . | . . . . . . . . . . . . . . . . . . . . . . . . . . Effects 353 | . . . . . . 8 12 16 4 27 . . 28 14 12 3 7 1 39 1 10 71 24 76 . Message Errors 85 | . . . . . . 2 4 1 2 5 . . 7 5 2 2 . . 7 1 1 22 4 20 . Matter Fused 73 | . . . . . . . 2 2 1 12 . . 6 1 4 . 1 . 8 . 1 17 4 14 . Heat Flow Errors 38 | . . . . . . 2 1 . . 4 . . 1 . 2 . . . 2 . 4 5 6 11 . Energy Discharges 58 | . . . . . . 2 1 5 . . . . 6 4 . 1 4 . 9 . 2 6 4 14 . Parts Rejected 4 | . . . . . . . . 1 . . . . . . . . . . 1 . . . . 2 . Parts Fused 2 | . . . . . . . . . . . . . . . . . . . . . . 1 . 1 . Data Loss (minor) 32 | . . . . . . 1 4 1 . 1 . . 3 3 2 . 2 . 4 . 1 6 2 2 . Data Loss (major) 8 | . . . . . . . . 2 1 . . . . . . . . . 1 . . 2 . 2 . Misfires 13 | . . . . . . . . 2 . 1 . . 1 . . . . . 2 . 1 1 2 3 . Alerts 11 | . . . . . . . . 2 . 2 . . 1 . . . . . . . . 2 2 2 . Misdirections 1 | . . . . . . . . . . . . . . . . . . . . . . . . 1 . Weapon Failures 28 | . . . . . . 1 . . . 2 . . 3 1 2 . . 1 5 . . 9 . 4 . Overload Shots 3 | . . . . . . . . . . . . . . . . . . . . . . . 1 2 . Effects 1 | . . . . . . . . . . . . . . . . . . . . . . . . 1 . Short Circuit 1 | . . . . . . . . . . . . . . . . . . . . . . . . 1 . Overflow Damage 858 | . . . . . 58 . . . . . . . . . . 18 4 11 . . . 5 50 247 465 Projectiles 296 | . . . . . . . . . . . . . . . . 8 . 4 . . . 5 32 247 . Explosions 562 | . . . . . 58 . . . . . . . . . . 10 4 7 . . . . 18 . 465 Melee . | . . . . . . . . . . . . . . . . . . . . . . . . . . Knockbacks 2 | . . . . . . . . . . . . . . . . . . 1 1 . . . . . . Impact 2 | . . . . . . . . . . . . . . . . . . 1 1 . . . . . . Kinetic . | . . . . . . . . . . . . . . . . . . . . . . . . . . Secondary . | . . . . . . . . . . . . . . . . . . . . . . . . . . Self-Inflicted Damage 1155 | . . . . 1 109 . . . . . . . . . . . . 30 53 . . . . 132 830 Shots 6 | . . . . . 2 . . . . . . . . . . . . 1 1 . . . . 1 1 Rammed 7 | . . . . 1 . . . . . . . . . . . . . . 4 . . 2 . . . Targets Rammed 9 | . . . . 1 . . . . . . . . . . . . . 1 4 . . 3 . . . Kicked 1 | . . . . . . . . . . . . . . . . . . 1 . . . . . . . Crushed 1 | . . . . . . . . . . . . . . . . . . . . . . 1 . . . Highest Temperature 756 | . 12 9 . 20 195 227 143 8 . 239 . 29 63 45 161 . . 278 324 . 86 756 651 522 330 Average Temperature 107 | . 7 9 . 20 62 44 78 3 . 77 . 5 17 22 34 . . 72 88 . 33 125 188 136 164 Received Heat Transfer 2913 | . 87 42 . 40 423 117 . 51 . 153 . 118 459 267 114 36 20 380 105 . 13 138 8 342 . Effects 26 | . . . . . . . . . . . . . . . . . . . . . . 15 6 1 4 Shutdowns 8 | . . . . . . . . . . . . . . . . . . . . . . 4 4 . . Energy Bleed 4 | . . . . . . . . . . . . . . . . . . . . . . 4 . . . Interference 4 | . . . . . . . . . . . . . . . . . . . . . . . . . 4 Short Circuit 4 | . . . . . . . . . . . . . . . . . . . . . . 3 . 1 . Damage (minor) 1 | . . . . . . . . . . . . . . . . . . . . . . 1 . . . Damage (core) 5 | . . . . . . . . . . . . . . . . . . . . . . 3 2 . . Siege Activations . | . . . . . . . . . . . . . . . . . . . . . . . . . . Martial Activations . | . . . . . . . . . . . . . . . . . . . . . . . . . . Shielding Activations . | . . . . . . . . . . . . . . . . . . . . . . . . . . Robots Disrupted . | . . . . . . . . . . . . . . . . . . . . . . . . . . Combat Hostiles . | . . . . . . . . . . . . . . . . . . . . . . . . . . Robots Corrupted . | . . . . . . . . . . . . . . . . . . . . . . . . . . Combat Hostiles . | . . . . . . . . . . . . . . . . . . . . . . . . . . Parts Fried . | . . . . . . . . . . . . . . . . . . . . . . . . . . Impact Corruptions . | . . . . . . . . . . . . . . . . . . . . . . . . . . Robots Melted 8 | . . . . . 1 . . . . . . . 1 . 1 . . . . . . . 2 3 . Combat Hostiles 7 | . . . . . 1 . . . . . . . . . 1 . . . . . . . 2 3 . Parts Melted 38 | . . . . . 5 . . . . . . . 6 . 3 . . . 1 . . 6 8 7 2 Heat Transferred 14274 | . . . . . 1519 . . . . 675 . . 3034 259 666 . . 350 400 . . 2109 1258 3366 638 Parts Sabotaged . | . . . . . . . . . . . . . . . . . . . . . . . . . . Parts Stolen . | . . . . . . . . . . . . . . . . . . . . . . . . . . Parts Stripped . | . . . . . . . . . . . . . . . . . . . . . . . . . . Power Chain Reactions . | . . . . . . . . . . . . . . . . . . . . . . . . . . Alert | -11 -10 -10 -10 -9 -8 -7 -7 -7 -7 -6 -6 -6 -5 -5 -5 -5 -4 -4 -4 -4 -3 -3 -2 -2 -1 ------- Run | Yrd Mat Min Exi Min Mat Fac Low Low Dat Pro Fac DSF Fac Upp Upp War Pro Fac Arm Lab Res Tes Res Qua Acc Maximum Alert Level 4 | . . . . . . . . . . . . . . . . . . 1 1 . 1 . 1 3 4 Low Security (%) 82 | 100 100 100 . 100 100 100 . . . . 100 100 100 . . . . 97 48 . 76 100 96 33 . Level 1 10 | . . . . . . . . . . . . . . . . . . 2 51 . 23 . 3 27 . Level 2 4 | . . . . . . . . . . . . . . . . . . . . . . . . 25 77 Level 3 2 | . . . . . . . . . . . . . . . . . . . . . . . . 13 18 Level 4 . | . . . . . . . . . . . . . . . . . . . . . . . . . 4 Level 5 . | . . . . . . . . . . . . . . . . . . . . . . . . . . High Security . | . . . . . . . . . . . . . . . . . . . . . . . . . . Max Security . | . . . . . . . . . . . . . . . . . . . . . . . . . . Sterilizations 1 | . . . . . . . . . . . . 1 . . . . . . . . . . . . . Peak Influence 1257 | 5 144 77 . 85 150 98 . . . . . 75 78 . . . . 238 380 . 232 161 217 1051 1257 Initial 630 | . . 27 . . 21 46 . . . . . . 39 . . . . . 113 . . 43 62 117 630 Average 125 | . 47 16 . 37 23 20 . . . . . 57 20 . . . . 55 182 . 140 93 74 400 666 Influence Increases 8540 | 15 398 120 . 105 515 222 . 160 . 170 . 105 340 155 110 320 110 605 696 . 444 784 555 1734 877 Destroy 0b10 Robot/C 4340 | . 260 100 . 80 300 100 . 140 . 140 . 80 240 20 40 320 100 200 340 . 200 460 200 860 160 Destroy 0b10 Robot/NC 260 | 15 25 . . . 45 35 . . . . . . 10 . . . . 30 20 . 10 45 . 15 10 Destroy Leader 818 | . 58 20 . 10 100 26 . 20 . 30 . 10 52 . 10 . 10 52 98 . 52 108 30 112 20 Allied During Kill 28 | . . . . . . . . . . . . . . . . . . . 19 . 9 . . . . Successful Hack 103 | . 25 . . . 13 30 . . . . . . 20 . . . . . . . . . . 15 . Select Force Hacks 30 | . 30 . . . . . . . . . . . . . . . . . . . . . . . . Disable Machine 630 | . . . . 15 30 15 . . . . . . . . . . . 135 45 . 15 90 15 165 105 Anti-Garrison Action 150 | . . . . . . . . . . . . . . . . . . . . . . . 150 . . Destroy Structure 1686 | . . . . . 27 1 . . . . . . 18 . . . . 188 84 . 68 66 115 552 567 Partial Spotted 45 | . . . . . . 15 . . . . . . . . . . . . . . . 15 . . 15 Lose Combat Pursuer 450 | . . . . . . . . . . . . 15 . 135 60 . . . 90 . 90 . 45 15 . Influence Decreases 7303 | 15 326 190 2 50 466 251 75 154 6 170 . 30 399 64 161 98 388 373 603 325 366 751 457 892 691 Entered New Map 1613 | . . 45 2 . 34 58 29 . 6 . . . 36 7 21 56 278 . 119 325 . 35 49 92 421 Time Decay 4657 | 15 316 145 . 50 261 183 46 154 . 150 . . 310 47 130 32 100 254 444 . 306 586 408 610 110 Lost Part 863 | . 10 . . . 41 10 . . . 20 . 30 53 10 10 10 10 119 20 . 40 130 . 190 160 Lost Ally 40 | . . . . . . . . . . . . . . . . . . . 20 . 20 . . . . Purge Threat 130 | . . . . . 130 . . . . . . . . . . . . . . . . . . . . Squads Dispatched 39 | . 1 . . . 2 2 . . . . . 2 3 . . . . 2 5 . 3 8 . 10 1 Investigation 4 | . 1 . . . 1 . . . . . . . 1 . . . . . . . 1 . . . . Extermination 17 | . . . . . . 1 . . . . . . 2 . . . . 1 3 . 1 4 . 5 . Reinforcement 14 | . . . . . . 1 . . . . . 2 . . . . . 1 2 . . 3 . 4 1 Assault 1 | . . . . . . . . . . . . . . . . . . . . . . . . 1 . Garrison 3 | . . . . . 1 . . . . . . . . . . . . . . . 1 1 . . . Intercept . | . . . . . . . . . . . . . . . . . . . . . . . . . . Searches Triggered . | . . . . . . . . . . . . . . . . . . . . . . . . . . Data Miner Redirects 1 | . . . . . . . . . . . . . . . . . . . . . 1 . . . . Construction Impeded 1 | . . . . . . . . . . . . . . . . . . 1 . . . . . . . Haulers Reinforced 2 | . . . . . . . . . . . . . . . . . . . . . . 1 . 1 . Active Scanning Responses . | . . . . . . . . . . . . . . . . . . . . . . . . . . Cargo Convoy Interrupts . | . . . . . . . . . . . . . . . . . . . . . . . . . . Stealth | -11 -10 -10 -10 -9 -8 -7 -7 -7 -7 -6 -6 -6 -5 -5 -5 -5 -4 -4 -4 -4 -3 -3 -2 -2 -1 --------- Run | Yrd Mat Min Exi Min Mat Fac Low Low Dat Pro Fac DSF Fac Upp Upp War Pro Fac Arm Lab Res Tes Res Qua Acc Distress Signals 27 | . . . . . 1 . . . . . . . . . . 1 . 1 2 . . 2 13 7 . Communications Jammed 23 | . . . . . . . . . . . . . . . . . . . . . . 3 . 20 . Distress Signals 21 | . . . . . . . . . . . . . . . . . . . . . . 1 . 20 . Times Spotted 354 | . 18 5 . 14 25 8 . 7 . 7 . 18 16 10 10 31 5 19 26 . 15 28 23 59 10 Peak Tracking Total 20 | . 3 3 . 20 4 3 . 3 . 4 . 5 6 10 9 17 3 7 6 . 6 4 10 9 7 Tactical Retreats 16 | . . . . 1 . . . . . . . 1 . 3 2 . . . 3 . 3 . 2 1 . Traps | -11 -10 -10 -10 -9 -8 -7 -7 -7 -7 -6 -6 -6 -5 -5 -5 -5 -4 -4 -4 -4 -3 -3 -2 -2 -1 ------- Run | Yrd Mat Min Exi Min Mat Fac Low Low Dat Pro Fac DSF Fac Upp Upp War Pro Fac Arm Lab Res Tes Res Qua Acc Traps Triggered 12 | . . . . . 1 1 . . . . . 1 1 . . . . . 3 . 2 1 . 2 . Indirectly . | . . . . . . . . . . . . . . . . . . . . . . . . . . Trap Hack Attempts . | . . . . . . . . . . . . . . . . . . . . . . . . . . Triggered . | . . . . . . . . . . . . . . . . . . . . . . . . . . Disarmed . | . . . . . . . . . . . . . . . . . . . . . . . . . . Reprogrammed . | . . . . . . . . . . . . . . . . . . . . . . . . . . Reused . | . . . . . . . . . . . . . . . . . . . . . . . . . . Traps Extracted . | . . . . . . . . . . . . . . . . . . . . . . . . . . Installed 4 | . . 4 . . . . . . . . . . . . . . . . . . . . . . . Triggered . | . . . . . . . . . . . . . . . . . . . . . . . . . . Most Traps Carried 4 | . . 4 . . . . . . . . . . . . . . . . . . . . . . . Machines | -11 -10 -10 -10 -9 -8 -7 -7 -7 -7 -6 -6 -6 -5 -5 -5 -5 -4 -4 -4 -4 -3 -3 -2 -2 -1 ---------- Run | Yrd Mat Min Exi Min Mat Fac Low Low Dat Pro Fac DSF Fac Upp Upp War Pro Fac Arm Lab Res Tes Res Qua Acc Machines Disabled 49 | . . . . 1 2 1 . . . . . . . . . . . 13 3 . 1 6 3 12 7 Max in Single Turn 7 | . . . . 1 1 1 . . . . . . . . . . . 3 1 . 1 1 1 1 7 Garrison Access 3 | . . . . . . . . . . . . . . . . . . . . . . . 3 . . Machines Repaired . | . . . . . . . . . . . . . . . . . . . . . . . . . . Machines Dismantled . | . . . . . . . . . . . . . . . . . . . . . . . . . . Machines Sabotaged . | . . . . . . . . . . . . . . . . . . . . . . . . . . Overloaded Fab Kills . | . . . . . . . . . . . . . . . . . . . . . . . . . . Hacking | -11 -10 -10 -10 -9 -8 -7 -7 -7 -7 -6 -6 -6 -5 -5 -5 -5 -4 -4 -4 -4 -3 -3 -2 -2 -1 --------- Run | Yrd Mat Min Exi Min Mat Fac Low Low Dat Pro Fac DSF Fac Upp Upp War Pro Fac Arm Lab Res Tes Res Qua Acc Machines Accessed 54 | . 7 . 1 . 10 4 1 . 3 . 1 . 4 . . 1 . 5 4 . 4 4 . 5 . Terminals 37 | . 5 . . . 8 3 . . . . 1 . 4 . . . . 2 2 . 4 3 . 5 . Fabricators 5 | . . . . . . 1 . . . . . . . . . . . 2 1 . . 1 . . . Repair Stations . | . . . . . . . . . . . . . . . . . . . . . . . . . . Recycling Units 6 | . 2 . . . 2 . . . . . . . . . . . . 1 1 . . . . . . Scanalyzers . | . . . . . . . . . . . . . . . . . . . . . . . . . . Garrison Access . | . . . . . . . . . . . . . . . . . . . . . . . . . . Total Hacks 139 | . 26 . 1 . 26 7 1 . 22 . 3 . 9 . . 1 . 7 8 . 10 6 . 12 . Successful 63 | . 15 . 1 . 7 2 1 . 22 . 1 . 3 . . 1 . 2 2 . . 1 . 5 . Failed 76 | . 11 . . . 19 5 . . . . 2 . 6 . . . . 5 6 . 10 5 . 7 . Catastrophic 22 | . 1 . . . 3 1 . . . . . . 2 . . . . 1 4 . 5 3 . 2 . Database Lockouts . | . . . . . . . . . . . . . . . . . . . . . . . . . . Manual 59 | . 24 . . . 20 1 . . . . . . 4 . . 1 . 1 3 . 4 . . 1 . Terminals 94 | . 21 . . . 22 6 . . . . 3 . 9 . . . . 3 4 . 10 4 . 12 . Fabricators 6 | . . . . . . 1 . . . . . . . . . . . 2 1 . . 2 . . . Repair Stations . | . . . . . . . . . . . . . . . . . . . . . . . . . . Recycling Units 14 | . 5 . . . 4 . . . . . . . . . . . . 2 3 . . . . . . Scanalyzers . | . . . . . . . . . . . . . . . . . . . . . . . . . . Garrison Access . | . . . . . . . . . . . . . . . . . . . . . . . . . . Terminal Hacks 42 | . 3 . 1 . 2 2 1 . 22 . 1 . 3 . . 1 . 1 . . . . . 5 . Record 7 | . . . 1 . . . . . 6 . . . . . . . . . . . . . . . . Part Schematic 10 | . . . . . . . . . 9 . . . 1 . . . . . . . . . . . . Robot Schematic 4 | . . . . . . . . . 4 . . . . . . . . . . . . . . . . Prototype ID Bank 3 | . . . . . . . . . 3 . . . . . . . . . . . . . . . . Open Door 2 | . . . . . . . 1 . . . . . . . . 1 . . . . . . . . . Open DSF 1 | . . . . . . . . . . . 1 . . . . . . . . . . . . . . Branch Access Points 3 | . 1 . . . . 1 . . . . . . 1 . . . . . . . . . . . . Emergency Access Points 2 | . . . . . . . . . . . . . . . . . . . . . . . . 2 . Garrison Index 1 | . . . . . . . . . . . . . . . . . . . . . . . . 1 . Alert Level 2 | . . . . . . . . . . . . . . . . . . 1 . . . . . 1 . Unreport Threat 1 | . . . . . 1 . . . . . . . . . . . . . . . . . . . . Locate Traps 1 | . . . . . . . . . . . . . 1 . . . . . . . . . . . . Registered Components 2 | . 1 . . . . . . . . . . . . . . . . . . . . . . 1 . Zone Layout 3 | . 1 . . . 1 1 . . . . . . . . . . . . . . . . . . . Fabricator Hacks 3 | . . . . . . . . . . . . . . . . . . 1 1 . . 1 . . . Network Status 3 | . . . . . . . . . . . . . . . . . . 1 1 . . 1 . . . Repair Station Hacks . | . . . . . . . . . . . . . . . . . . . . . . . . . . Recycling Unit Hacks 2 | . 2 . . . . . . . . . . . . . . . . . . . . . . . . Retrieve Components 2 | . 2 . . . . . . . . . . . . . . . . . . . . . . . . Scanalyzer . | . . . . . . . . . . . . . . . . . . . . . . . . . . Garrison Access Hacks . | . . . . . . . . . . . . . . . . . . . . . . . . . . Unauthorized Hacks 16 | . 10 . . . 5 . . . . . . . . . . . . . 1 . . . . . . Terminals 15 | . 9 . . . 5 . . . . . . . . . . . . . 1 . . . . . . Botnet 5 | . 4 . . . . . . . . . . . . . . . . . 1 . . . . . . Skim 10 | . 5 . . . 5 . . . . . . . . . . . . . . . . . . . . Fabricators . | . . . . . . . . . . . . . . . . . . . . . . . . . . Repair Stations . | . . . . . . . . . . . . . . . . . . . . . . . . . . Recycling Units 1 | . 1 . . . . . . . . . . . . . . . . . . . . . . . . Tunnel 1 | . 1 . . . . . . . . . . . . . . . . . . . . . . . . Scanalyzers . | . . . . . . . . . . . . . . . . . . . . . . . . . . Garrison Access . | . . . . . . . . . . . . . . . . . . . . . . . . . . Data Cores Recovered . | . . . . . . . . . . . . . . . . . . . . . . . . . . Used . | . . . . . . . . . . . . . . . . . . . . . . . . . . Hacking Detections 44 | . 6 . . . 10 4 . . . . 1 . 4 . . . . 4 3 . 4 4 . 4 . Full Trace Events 3 | . 1 . . . 1 . . . . . . . . . . . . . . . 1 . . . . Feedback Events . | . . . . . . . . . . . . . . . . . . . . . . . . . . Feedback Blocked . | . . . . . . . . . . . . . . . . . . . . . . . . . . Robot Schematics Acquired 7 | . . . . . . . . . 4 . . . . . . . . . . . . . . 3 . Robots Built . | . . . . . . . . . . . . . . . . . . . . . . . . . . Authchips . | . . . . . . . . . . . . . . . . . . . . . . . . . . Time . | . . . . . . . . . . . . . . . . . . . . . . . . . . Total Robot Build Rating . | . . . . . . . . . . . . . . . . . . . . . . . . . . Part Schematics Acquired 15 | . . . . . . . . . 9 . . . 1 . . . . . . . . . . 5 . Parts Built . | . . . . . . . . . . . . . . . . . . . . . . . . . . Authchips . | . . . . . . . . . . . . . . . . . . . . . . . . . . Time . | . . . . . . . . . . . . . . . . . . . . . . . . . . Total Part Build Rating . | . . . . . . . . . . . . . . . . . . . . . . . . . . Parts Repaired . | . . . . . . . . . . . . . . . . . . . . . . . . . . Time . | . . . . . . . . . . . . . . . . . . . . . . . . . . Parts Recycled . | . . . . . . . . . . . . . . . . . . . . . . . . . . Recycled Matter . | . . . . . . . . . . . . . . . . . . . . . . . . . . Retrieved Matter . | . . . . . . . . . . . . . . . . . . . . . . . . . . Retrieved Components 11 | . 11 . . . . . . . . . . . . . . . . . . . . . . . . Parts Scanalyzed . | . . . . . . . . . . . . . . . . . . . . . . . . . . Part Schematics Acquired . | . . . . . . . . . . . . . . . . . . . . . . . . . . Parts Damaged . | . . . . . . . . . . . . . . . . . . . . . . . . . . Bothacking | -11 -10 -10 -10 -9 -8 -7 -7 -7 -7 -6 -6 -6 -5 -5 -5 -5 -4 -4 -4 -4 -3 -3 -2 -2 -1 ------------ Run | Yrd Mat Min Exi Min Mat Fac Low Low Dat Pro Fac DSF Fac Upp Upp War Pro Fac Arm Lab Res Tes Res Qua Acc Used RIF Installer . | . . . . . . . . . . . . . . . . . . . . . . . . . . Robots Hacked . | . . . . . . . . . . . . . . . . . . . . . . . . . . Non-combat . | . . . . . . . . . . . . . . . . . . . . . . . . . . Combat . | . . . . . . . . . . . . . . . . . . . . . . . . . . Robot Hacks Applied . | . . . . . . . . . . . . . . . . . . . . . . . . . . Relay Couplers Released 1 | . . . . . . . . . . . . . . . . . . . . . . . 1 . . Machine Destruction 1 | . . . . . . . . . . . . . . . . . . . . . . . 1 . . Fabnet Peak Effective % . | . . . . . . . . . . . . . . . . . . . . . . . . . . Robots Rewired 3 | . . . . . . . . . . . . . . . . . . . 3 . . . . . . Allies Hacked 2 | . . . . . . . . . . . . . . . . . . . 1 . 1 . . . . Hacks Repelled . | . . . . . . . . . . . . . . . . . . . . . . . . . . Allies | -11 -10 -10 -10 -9 -8 -7 -7 -7 -7 -6 -6 -6 -5 -5 -5 -5 -4 -4 -4 -4 -3 -3 -2 -2 -1 -------- Run | Yrd Mat Min Exi Min Mat Fac Low Low Dat Pro Fac DSF Fac Upp Upp War Pro Fac Arm Lab Res Tes Res Qua Acc Total Allies 3 | . . . . . . . . . . . . . . . . . . . 3 . . . . . . Largest Group 2 | . . . . . . . . . . . . . . . . . . . 2 2 2 . . . . Highest-Rated Group 96 | . . . . . . . . . . . . . . . . . . . 96 96 96 . . . . Highest-Rated Ally 48 | . . . . . . . . . . . . . . . . . . . 48 48 48 . . . . Initial Warlord ECA Mod 99 | . . . . . . . . . . . . . 9 9 9 9 8 8 8 8 7 7 6 6 5 Total Orders . | . . . . . . . . . . . . . . . . . . . . . . . . . . Ally Attacks 10 | . . . . . . . . . . . . . . . . . . . 8 . 2 . . . . Total Damage 359 | . . . . . . . . . . . . . . . . . . . 250 . 109 . . . . Kills 3 | . . . . . . . . . . . . . . . . . . . 2 . 1 . . . . Allies Corrupted 1 | . . . . . . . . . . . . . . . . . . . . . 1 . . . . Allies Melted 1 | . . . . . . . . . . . . . . . . 1 . . . . . . . . . Intel | -11 -10 -10 -10 -9 -8 -7 -7 -7 -7 -6 -6 -6 -5 -5 -5 -5 -4 -4 -4 -4 -3 -3 -2 -2 -1 ------- Run | Yrd Mat Min Exi Min Mat Fac Low Low Dat Pro Fac DSF Fac Upp Upp War Pro Fac Arm Lab Res Tes Res Qua Acc Active Infowar (turns) 8628 | . 1224 559 436 133 455 655 . . . . . . . . . . . 497 . . 3 1900 1379 1330 57 Sensors 2755 | . . . . . . . . . . . . . . . . . . 497 . . . 1329 . 929 . Structural 160 | . . . . . 160 . . . . . . . . . . . . . . . . . . . . Seismic 3302 | . 1224 559 436 133 295 655 . . . . . . . . . . . . . . . . . . . Jamming 4052 | . . . . . . . . . . . . . . . . . . . . . 3 1900 1379 713 57 Robot Analysis Total . | . . . . . . . . . . . . . . . . . . . . . . . . . . Derelict Logs Recovered 7 | . . 1 . . . . 2 1 . 2 . . . . . . 1 . . . . . . . . Drone Launches . | . . . . . . . . . . . . . . . . . . . . . . . . . . Drone Recoveries . | . . . . . . . . . . . . . . . . . . . . . . . . . . Exploration | -11 -10 -10 -10 -9 -8 -7 -7 -7 -7 -6 -6 -6 -5 -5 -5 -5 -4 -4 -4 -4 -3 -3 -2 -2 -1 ------------- Run | Yrd Mat Min Exi Min Mat Fac Low Low Dat Pro Fac DSF Fac Upp Upp War Pro Fac Arm Lab Res Tes Res Qua Acc Turns Passed 18928 | 142 1224 559 436 133 1237 896 349 467 120 758 19 413 1124 413 266 1539 432 842 1319 24 726 1900 1379 1991 220 Spaces Moved 10201 | 70 545 536 456 115 639 485 215 254 75 395 10 144 570 327 207 960 394 432 584 16 393 809 810 689 71 Core 34 | 14 . . . . 1 . . . . . . . . . . . . . . . . . . 5 14 Treads 6356 | 56 483 . . . 603 485 215 254 75 395 10 144 450 . . . . . 498 16 393 809 810 616 44 Legs 2594 | . . . . . . . . . . . . . 120 327 207 960 394 432 86 . . . . 68 . Wheels 1217 | . 62 536 456 115 35 . . . . . . . . . . . . . . . . . . . 13 Hover . | . . . . . . . . . . . . . . . . . . . . . . . . . . Flight . | . . . . . . . . . . . . . . . . . . . . . . . . . . Fastest Speed 50 | 50 95 95 95 95 80 160 162 162 162 162 163 160 120 120 120 102 102 102 155 155 152 145 152 145 50 Average Speed 148 | 138 152 95 95 95 156 161 162 162 162 166 163 160 153 120 120 131 102 118 161 155 152 176 156 224 193 Slowest Speed 2300 | 160 240 95 95 95 400 163 162 162 162 243 163 163 270 120 120 182 102 185 250 155 155 235 242 2300 270 Overloaded Moves . | . . . . . . . . . . . . . . . . . . . . . . . . . . Propulsion Burnouts . | . . . . . . . . . . . . . . . . . . . . . . . . . . Robots Hopped . | . . . . . . . . . . . . . . . . . . . . . . . . . . Potential Cave-ins 12 | . . . . . . . . . . . . . 8 . . . . . . . . . . 4 . Cave-ins Triggered 2 | . . . . . . . . . . . . . 2 . . . . . . . . . . . . Exploration Rate (%) 45 | 5 72 97 85 37 60 16 44 43 68 61 1 77 12 64 40 92 62 15 33 6 13 74 22 70 3 Regions Visited 25 Branch Regions 15 Pre-discovered Areas 10 | . 4 1 . . . . 1 . 1 1 . . . 1 . . 1 . . . . . . . . Known Exits Taken 10 | . 1 . 1 . . 1 1 . . 1 1 . 1 . . . . 1 . . . 1 . 1 . Unknown Exits Taken 14 | 1 . 1 . 1 1 . . 1 1 . . . . 1 1 1 1 . 1 1 1 . 1 . . Scrap Searched 11 | . . 1 . 2 . . 1 2 . 2 . . . 1 2 . . . . . . . . . . Spaces Dug 81 | . . . . . . . . . . . . . 10 . . . . 3 6 . 3 11 4 44 . Terrain Destroyed 913 | . . . . . 34 . . . . 1 . . 39 . . 49 9 99 46 . 36 31 60 227 282 Melee . | . . . . . . . . . . . . . . . . . . . . . . . . . . Projectile 210 | . . . . . 1 . . . . 1 . . 39 . . . 9 29 8 . 3 25 14 78 3 AOE 690 | . . . . . 33 . . . . . . . . . . 49 . 70 33 . 31 . 46 149 279 Terrain Rammed . | . . . . . . . . . . . . . . . . . . . . . . . . . . Walls Destroyed . | . . . . . . . . . . . . . . . . . . . . . . . . . . Machines Disabled . | . . . . . . . . . . . . . . . . . . . . . . . . . . Actions | -11 -10 -10 -10 -9 -8 -7 -7 -7 -7 -6 -6 -6 -5 -5 -5 -5 -4 -4 -4 -4 -3 -3 -2 -2 -1 --------- Run | Yrd Mat Min Exi Min Mat Fac Low Low Dat Pro Fac DSF Fac Upp Upp War Pro Fac Arm Lab Res Tes Res Qua Acc Total 12774 | 98 842 573 459 129 788 573 216 275 74 436 13 245 716 339 212 1237 411 717 853 15 472 1113 889 955 124 Wait 892 | . 214 7 . 9 17 30 . . . 3 . . 26 4 . 170 . 187 3 . 24 109 12 77 . Move 10174 | 69 544 535 455 114 638 484 214 253 74 394 9 143 567 326 206 959 393 431 583 15 392 808 809 688 71 Hop . | . . . . . . . . . . . . . . . . . . . . . . . . . . Pick Up 276 | 12 15 10 3 . 28 19 1 . . 5 . 17 27 1 1 20 3 16 34 . 11 27 5 18 3 Fast Attach 73 | . . . . . 10 4 . 1 . . . 5 . . . 11 . 5 10 . 2 6 6 13 . Attach 176 | 6 3 . . . 10 2 . 1 . 5 1 12 16 2 . 11 1 20 10 . 11 21 11 21 12 Detach 33 | . . . . . 1 . . 2 . . 1 . . . . . . 6 2 . . . 10 7 4 Swap 128 | . 4 . . . 7 5 . 1 . 4 1 7 9 2 . 20 . 5 19 . 5 29 4 6 . Drop 248 | 1 8 8 1 . 28 16 1 1 . 1 1 21 18 1 . 38 1 8 36 . 6 23 11 16 3 Fire 663 | 10 54 9 . 5 49 13 . 16 . 24 . 40 51 3 5 8 13 38 56 . 21 87 21 109 31 Melee . | . . . . . . . . . . . . . . . . . . . . . . . . . . Ram 1 | . . . . 1 . . . . . . . . . . . . . . . . . . . . . Kick 1 | . . . . . . . . . . . . . . . . . . 1 . . . . . . . Crush 7 | . . . . . . . . . . . . . . . . . . . 4 . . 3 . . . Escape Stasis 2 | . . . . . . . . . . . . . 2 . . . . . . . . . . . . Rewire 96 | . . . . . . . . . . . . . . . . . . . 96 . . . . . . Trap 4 | . . 4 . . . . . . . . . . . . . . . . . . . . . . . Miscellaneous . | . . . . . . . . . . . . . . . . . . . . . . . . . . Route ------- -11/Scrapyard -10/Materials (discovered 6 exits: *Mat x3 / *Min x2 / Sub) -10/Mines (discovered 4 exits: *Mat x2 / *Exi / *Sub) -10/Exiles (discovered 2 exits: *Min x2) -9/Mines -8/Materials -7/Factory (discovered 3 exits: *Sto / *Low x2) -7/Lower Caves -7/Lower Caves (discovered 2 exits: Fac / *Dat) -7/Data Miner -6/Proximity Caves -6/Factory -6/DSF -5/Factory (discovered 3 exits: *Fac / *Upp x2) -5/Upper Caves -5/Upper Caves (discovered 2 exits: *Fac / *War) -5/Warlord -4/Proximity Caves -4/Factory -4/Armory -4/Lab -3/Research -3/Testing -2/Research -2/Quarantine -1/Access History --------- Turn | Location | Event 2 | -11/Scrapyard | Met Revision 17 8 | -11/Scrapyard | Discovered new exit (range 16) 143 | -11/Scrapyard | Entered Materials 303 | -10/Materials | Build established: Mutant 431 | -10/Materials | Discovered new exit (range 8) 794 | -10/Materials | Discovered new exit (range 7) 943 | -10/Materials | Identified exit to Mines 965 | -10/Materials | Discovered new exit (range 14) 1213 | -10/Materials | Learned 4 Subcaves zone layouts 1260 | -10/Materials | Identified exit to Subcaves 1260 | -10/Materials | Identified exit to Materials 1296 | -10/Materials | Learned Storage trap positions 1335 | -10/Materials | Learned Storage security intel 1344 | -10/Materials | Learned 4 Recycling zone layouts 1363 | -10/Materials | Learned location of Mines (-9) 1367 | -10/Materials | Entered Mines 1406 | -10/Mines | Discovered exit to Materials (range 12) 1416 | -10/Mines | Core integrity fell below 50% 1530 | -10/Mines | Received a Rocket Launcher from a helpful Derelict 1648 | -10/Mines | Found a hidden stash of uninstalled traps 1735 | -10/Mines | Discovered exit to Subcaves (range 7) 1788 | -10/Mines | Discovered exit to Materials (range 5) 1839 | -10/Mines | Learned location of Zion (-6) 1922 | -10/Mines | Deemed a non-threat by the Exiles lab entrance 1922 | -10/Mines | Discovered new exit (range 5) 1926 | -10/Mines | Entered Exiles 1926 | -10/Exiles | Found Exiles lab abandoned 1927 | -10/Exiles | Identified exit to Mines 2362 | -10/Exiles | Entered Mines 2363 | -9/Mines | Assembled infested the area 2368 | -9/Mines | Assisted by a Guerilla fighting off Assembled 2490 | -9/Mines | Discovered new exit (range 5) 2495 | -9/Mines | Entered Materials 2495 | -8/Materials | Evolved 4 slots: Propulsion x1, Utility x2, Weapon x1 2589 | -8/Materials | Lost 6 parts (1p3n1u1w) 2693 | -8/Materials | Garrison activated, responded to threat 3168 | -8/Materials | Build established: Scavenger-Tank 3296 | -8/Materials | Discovered new exit (range 9) 3717 | -8/Materials | Build established: Tank 3732 | -8/Materials | Entered Factory 3732 | -7/Factory | Evolved 2 slots: Propulsion x1, Utility x1 3733 | -7/Factory | Identified exit to Storage 4068 | -7/Factory | Identified exit to Lower Caves 4166 | -7/Factory | Build established: Gunner 4628 | -7/Factory | Entered Lower Caves 4756 | -7/Lower Caves | Identified exit to Lower Caves 4977 | -7/Lower Caves | Entered another Lower Caves area 5013 | -7/Lower Caves | Attracted the attention of an 0b10 checkpoint 5227 | -7/Lower Caves | Discovered new exit (range 9) 5255 | -7/Lower Caves | Identified exit to Factory 5444 | -7/Lower Caves | Entered Data Miner 5444 | -7/Data Miner | Discovered new exit (range 6) 5475 | -7/Data Miner | Met Data Miner 5503 | -7/Data Miner | Learned location of Section 7 (-2) 5503 | -7/Data Miner | Acquired the access code to Warlord's prototype stash 5529 | -7/Data Miner | Received God Mode back door access code from Data Miner 5564 | -7/Data Miner | Entered Proximity Caves 6056 | -6/Proximity Caves | Build established: Tank 6202 | -6/Proximity Caves | Discovered exit to Factory (range 10) 6239 | -6/Proximity Caves | Learned Factory trap positions 6322 | -6/Proximity Caves | Entered Factory 6322 | -6/Factory | Evolved 2 slots: Power x1, Utility x1 6323 | -6/Factory | Loaded intel: 79 trap records 6341 | -6/Factory | Identified exit to DSF 6341 | -6/Factory | Entered DSF 6380 | -6/DSF | Additional patrols routed to DSF 6446 | -6/DSF | Wild Derelicts raided the area 6596 | -6/DSF | Sterilization system engaged 6616 | -6/DSF | Ambient heat levels rising (+10) 6620 | -6/DSF | Destroyed 10 combat bots 6631 | -6/DSF | Ambient heat levels rising (+10) 6646 | -6/DSF | Ambient heat levels rising (+10) 6661 | -6/DSF | Ambient heat levels rising (+10) 6672 | -6/DSF | Discovered new exit (range 16) 6676 | -6/DSF | Ambient heat levels rising (+10) 6691 | -6/DSF | Ambient heat levels rising (+10) 6706 | -6/DSF | Ambient heat levels rising (+10) 6721 | -6/DSF | Ambient heat levels rising (+10) 6736 | -6/DSF | Ambient heat levels rising (+10) 6751 | -6/DSF | Ambient heat levels rising (+10) 6754 | -6/DSF | Entered Factory 6754 | -5/Factory | Evolved 2 slots: Utility x1, Weapon x1 6768 | -5/Factory | Identified exit to Upper Caves 7140 | -5/Factory | Crushed by falling debris 7141 | -5/Factory | Crushed by falling debris 7257 | -5/Factory | Discovered new exit (range 12) 7328 | -5/Factory | Lost 3 parts (1p1u1w) 7589 | -5/Factory | Build established: Gunner 7878 | -5/Factory | Entered Upper Caves 7884 | -5/Upper Caves | Met a Warlord Commander 7885 | -5/Upper Caves | Learned location of Warlord (-5) 7886 | -5/Upper Caves | Warlord Commander delivered Encrypted Comm Array 7891 | -5/Upper Caves | Found Encrypted Comm Array 8149 | -5/Upper Caves | Spotted B-75 Beast 8177 | -5/Upper Caves | Attracted the attention of an 0b10 checkpoint 8270 | -5/Upper Caves | Discovered new exit (range 15) 8291 | -5/Upper Caves | Entered another Upper Caves area 8323 | -5/Upper Caves | Discovered new exit (range 11) 8543 | -5/Upper Caves | Discovered new exit (range 11) 8557 | -5/Upper Caves | Entered Warlord 8601 | -5/Warlord | System corruption cleaned by Quarantine Array 8740 | -5/Warlord | Found Prototype Special Weapon 8742 | -5/Warlord | Found Prototype Special Weapon 8748 | -5/Warlord | Found Prototype Special Weapon 8751 | -5/Warlord | Found Prototype Special Weapon 8755 | -5/Warlord | Found Prototype Special Weapon 8763 | -5/Warlord | Found Prototype Special Weapon 8886 | -5/Warlord | Received a Watcher feed algorithm from an ecstatic Tinkerer 8944 | -5/Warlord | Opened Warlord's prototype stash 9008 | -5/Warlord | Found Prototype Reactor 9047 | -5/Warlord | Found Prototype Processor 9047 | -5/Warlord | Identified Exp. Targeting Computer 9053 | -5/Warlord | Found Prototype Processor 9053 | -5/Warlord | Identified Exp. Target Analyzer 9058 | -5/Warlord | Found Prototype Device 9068 | -5/Warlord | Identified Thermal Barrier 9165 | -5/Warlord | Warlord's base attacked by MAIN.C 9198 | -5/Warlord | Met Warlord 9314 | -5/Warlord | Met EX-DEC 9327 | -5/Warlord | Found Prototype Energy Gun 9327 | -5/Warlord | Identified Vortex Shotgun 9329 | -5/Warlord | Found Vortex Shotgun 9338 | -5/Warlord | Found Prototype Energy Cannon 9338 | -5/Warlord | Identified Vortex Driver 9342 | -5/Warlord | Found Vortex Driver 9371 | -5/Warlord | Found Prototype Launcher 9515 | -5/Warlord | Warlord forces counterattacked 9526 | -5/Warlord | Identified RU-N14's Throwing Claymores v3 (x6) 9528 | -5/Warlord | Found Prototype Energy Cannon 9646 | -5/Warlord | Spotted B-86 Titan 9814 | -5/Warlord | Spotted Executioner 9840 | -5/Warlord | Warlord base infiltrated, sounded retreat 9841 | -5/Warlord | Enhanced Grunt warped into view 9841 | -5/Warlord | Enhanced Grunt warped into view 9841 | -5/Warlord | Enhanced Grunt warped into view 9841 | -5/Warlord | Enhanced Demolisher warped into view 9841 | -5/Warlord | Enhanced Demolisher warped into view 9841 | -5/Warlord | Enhanced Demolisher warped into view 9919 | -5/Warlord | Destroyed Executioner 9965 | -5/Warlord | Spotted Striker 9966 | -5/Warlord | Spotted Striker 9973 | -5/Warlord | Discovered new exit (range 10) 9973 | -5/Warlord | Spotted Executioner 10006 | -5/Warlord | Lost 3 allies 10088 | -5/Warlord | Spotted Striker 10094 | -5/Warlord | Destroyed Striker 10096 | -5/Warlord | Entered Proximity Caves 10115 | -4/Proximity Caves | Destroyed 12 combat bots 10145 | -4/Proximity Caves | Attracted the attention of an 0b10 checkpoint 10383 | -4/Proximity Caves | Build established: Mutant 10517 | -4/Proximity Caves | Discovered new exit (range 7) 10528 | -4/Proximity Caves | Entered Factory 10528 | -4/Factory | Evolved 2 slots: Propulsion x1, Utility x1 10691 | -4/Factory | Found Prototype Launcher 10691 | -4/Factory | Identified Mni. Smartbomb Launcher 11102 | -4/Factory | Discovered new exit (range 11) 11193 | -4/Factory | Destroyed 8 combat bots 11195 | -4/Factory | Lost 12 parts (2p5n4u1w) 11345 | -4/Factory | Identified exit to Armory 11370 | -4/Factory | Entered Armory 12043 | -4/Armory | Found Fusion Bomb Launcher 12048 | -4/Armory | Found Fusion Bomb Launcher 12094 | -4/Armory | System corruption reached 10% 12366 | -4/Armory | Build established: Tank 12671 | -4/Armory | Discovered new exit (range 3) 12689 | -4/Armory | Entered Lab 12689 | -4/Lab | Accompanied by 2 allies 12689 | -4/Lab | Discovered new exit (range 9) 12708 | -4/Lab | Unable to decrypt terminal 12713 | -4/Lab | Entered Research 12713 | -3/Research | Accompanied by 2 allies 12713 | -3/Research | Evolved 2 slots: Propulsion x1, Utility x1 12736 | -3/Research | Garrison activated, responded to threat 12757 | -3/Research | P-80 Master assimilated allied Swordsman 7c 12872 | -3/Research | Incoming investigation squad redirected 12896 | -3/Research | Discovered new exit (range 13) 13281 | -3/Research | Found Hvy. Reflective Plating 13439 | -3/Research | Entered Testing 13699 | -3/Testing | Found Prototype Energy Cannon 13701 | -3/Testing | Identified Disintegrator 13868 | -3/Testing | Garrison activated, responded to threat 14028 | -3/Testing | Found Prototype Energy Cannon 14029 | -3/Testing | Identified Cld. Nova Cannon 14195 | -3/Testing | System corruption reached 10% 14566 | -3/Testing | Discovered new exit (range 7) 14609 | -3/Testing | Found Prototype Hackware 14626 | -3/Testing | Identified Exp. Hacking Suite 14753 | -3/Testing | Identified exit to Research 14835 | -3/Testing | Core integrity fell below 50% 15055 | -3/Testing | Lost 5 parts (2p1n1u1w) 15149 | -3/Testing | Found Prototype Ballistic Cannon 15339 | -3/Testing | Entered Research 15339 | -2/Research | Warlord forces began assault on 0b10 15339 | -2/Research | Evolved 2 slots: Weapon x2 15351 | -2/Research | Identified Omega Cannon 15352 | -2/Research | Identified Vortex Catalyst Activator 15355 | -2/Research | Identified BFG-9k Vortex Edition 15364 | -2/Research | Distinguished unit "Department No. 42" dispatched to help 15449 | -2/Research | Research machine network offline 15522 | -2/Research | Borebot progress halted 15738 | -2/Research | Lost 12 allies 15876 | -2/Research | Build established: Scavenger-Tank 15886 | -2/Research | Borebot progress halted 15951 | -2/Research | Spotted Executioner 15953 | -2/Research | Destroyed Executioner 15958 | -2/Research | Spotted Striker 15995 | -2/Research | Discovered new exit (range 8) 16068 | -2/Research | Lost 14 allies 16100 | -2/Research | Spotted Striker 16110 | -2/Research | Destroyed Striker 16175 | -2/Research | Spotted Executioner 16198 | -2/Research | Borebot progress halted 16250 | -2/Research | Lost 3 allies 16450 | -2/Research | Spotted Striker 16460 | -2/Research | Destroyed Striker 16600 | -2/Research | Met up with Warlord 16601 | -2/Research | Warlord invited to help at Command 16601 | -2/Research | Given Cave Seal Controls access code 16718 | -2/Research | Entered Quarantine 16740 | -2/Quarantine | Found Alien Artifact 16991 | -2/Quarantine | Spotted Alpha 7 16995 | -2/Quarantine | Destroyed Alpha 7 17065 | -2/Quarantine | Found Alien Launcher 17256 | -2/Quarantine | Lost 3 parts (1p2n) 17293 | -2/Quarantine | Found Alien Reactor 17426 | -2/Quarantine | Core integrity fell below 50% 17462 | -2/Quarantine | Lost 3 parts (3u) 17646 | -2/Quarantine | Discovered new exit (range 6) 17671 | -2/Quarantine | Identified exit to Access 17708 | -2/Quarantine | Build established: Skirmisher 17793 | -2/Quarantine | Found Alien Energy Cannon 17857 | -2/Quarantine | Cryocooling Duct disabled 17872 | -2/Quarantine | Ambient heat levels rising (+20) 17872 | -2/Quarantine | Non-combat units ordered to evacuate 18043 | -2/Quarantine | System corruption reached 10% 18122 | -2/Quarantine | Lost 9 parts (2n4u3w) 18380 | -2/Quarantine | Build established: Mutant 18399 | -2/Quarantine | Found Imp. Powered Armor 18405 | -2/Quarantine | Found Imp. Powered Armor 18468 | -2/Quarantine | First assault squad dispatched 18487 | -2/Quarantine | Found Alien Impact Weapon 18664 | -2/Quarantine | Cryocooling Duct disabled 18679 | -2/Quarantine | Ambient heat levels rising (+20) 18679 | -2/Quarantine | Combat units ordered to evacuate 18709 | -2/Quarantine | Entered Access 18709 | -1/Access | Evolved 2 slots: Power x1, Utility x1 18794 | -1/Access | Lost 6 allies 18861 | -1/Access | Lost 3 parts (1p1n1u) 18870 | -1/Access | Spotted B-99 Colossus 18899 | -1/Access | Identified Core Cannon 18916 | -1/Access | Identified Terrabomb 18916 | -1/Access | Used Terrabomb 18919 | -1/Access | Identified Sigix Terminator 18920 | -1/Access | Fired Sigix Terminator 18921 | -1/Access | Core integrity fell below 50% 18923 | -1/Access | Core integrity fell below 20% 18929 | -1/Access | Destroyed by B-99 Colossus with Linear Accelerator Last Messages --------------- 18915_ Penetrated by Slug. 18916_ Identified Terrabomb. 18916_ Terrabomb activated. 18919_ Centrium Wheel destroyed. 18919_ Penetrated by Slug. 18919_ Exp. Targeting Computer destroyed. 18919_ Identified Sigix Terminator. 18920_ Sigix Terminator expended. 18920_ Destroyed Hvy. Reflective Plating. 18920_ Destroyed Unknown Protection. 18920_ Destroyed Unknown Special Weapon. 18920_ T-07 Excavator destroyed. 18920_ Scanalyzer disabled. 18922_ Dropped Huge Storage Unit. 18922_ Adv. Signal Interpreter destroyed. 18922_ Critical hit (Blast). 18922_ Knocked back. 18922_ Penetrated by Slug. 18925_ Acquired 7 matter. 18926_ Penetrated by Slug. Map ----- +----------------------------------------------------+ | !%= = *+ """#?????????????????????? | | *[! # "?????????????????????? | | # " ??????????????????? | | " """ "????????????????? | | #####""" """ ??????????????? | | ????? " " ?????????????? | | ???? """"""""" ?????????????? | | ?????" " " #???????????? | | ?????" " " "???????????? | | ????"" " " ??????????? | | ?????"" " "" ??????????? | | ?????"" " %% ?????????? | | ????? "" " %%! ?????????? | | ? ???"? "" " ;= = ?????????? | | ???????" " ; ;;; B ?????????? | | ?????? " ; ; %]] ?????????? | | ?????? " ; ; ]!* ?????????? | | ????? " " **;% ]* ?????????? | | ???????+ " * ; ?????????? | | ????? """"";;"""";;; ??????????? | | ????? " ; % ??????????? | | ????? " ; ?????????? | | ?????? " " ?????????? | | ?????? " ;;+;;;; ????????? | | ???????" ; % ????????? | | ???????"""; ; @ ; ????????? | | ??????? ; ; " ;;;;; ????????? | | ???????? ; ; """ + ????????? | | ???????? " ; """ ; ";;;; ?????????? | | ????????? " ; " ; ; ; ?????????? | | ????????? " ; ; ;;;"""?+??????????? | | ??????????# ; ; ;; ????????????? | | ???????????## ; = ; ;; ???????????? | | ????????????### ;;;;;;;;;; + " ???????????? | | ??????????????### ;###? "????????????? | | ????????????????####### #??####????""????????????? | | ???????????????????????#?????????????????????????? | | ?????????????????????????????????????????????????? | | ?????????????????????????????????????????????????? | | | | | | | | | | | | | | | | | | | | | | | +----------------------------------------------------+ Best States ------------- Heat Dissipation 106 Coolant Potential 65 Energy Generation 57 Energy Capacity 1415 Matter Stores 300 Matter Capacity 300 Sight Range 16 Robot Scan Range 16 Terrain Scan Density 10 Jamming Range 16 Power Amplification 30 Base Temperature (-) 200 Armor Coverage 800 Resistance: KI 20 Resistance: TH 50 Resistance: EM 20 Core Shielding 30 Power Shielding 66 Utility Shielding 66 Weapon Shielding 66 Phase Shifting 15 Evasion (%) 70 Targeting Accuracy 18 Target Analysis 14 Armor Integrity Analysis 40 Recoil Reduction 6 Energy Filtering 50 Particle Charging 25 Kinecelleration 30 Offensive Hacking 22 Item Schematics ----------------- Combat Drone Bay | -7/Data Miner | Free Lgt. Regenerative Plating | -7/Data Miner | Free Cld. Cesium-ion Thruster | -7/Data Miner | Free Exp. Propulsion Shielding | -7/Data Miner | Free Imp. Heavy Machine Gun | -7/Data Miner | Free Antigrav System | -7/Data Miner | Free Lrn. Tractor Beam | -7/Data Miner | Free Imp. Remote Datajack | -7/Data Miner | Free Force Lance | -7/Data Miner | Free Graphene Brace | -5/Factory | Hacked Cld. Field Propulsion Drive | -2/Quarantine | Archive Cld. Antigrav System | -2/Quarantine | Archive Enh. Force Rifle | -2/Quarantine | Archive Stealth Drone Bay | -2/Quarantine | Archive Cld. Q-thruster | -2/Quarantine | Archive Robot Schematics ------------------ G-47 Trooper | -7/Data Miner | Free Y-54 Guardian | -7/Data Miner | Free R-10 Processor | -7/Data Miner | Free L-41 Fighter | -7/Data Miner | Free G-73 Enforcer | -2/Quarantine | Archive S-43 Plague | -2/Quarantine | Archive K-01 Serf | -2/Quarantine | Archive Fabricated ------------ Nothing Repaired ---------- Nothing Alien Tech Used ----------------- Core Cannon Terrabomb Sigix Terminator Achievements -------------- None Challenges ------------ None Game ------ Seed TachyonGammaBlade Manual? 0 Play Time 02:32:46 Cumulative 357.0 hours Start 2025.10.05 @ 11:37:56 End 2025.10.06 @ 02:17:22 Sessions 19 Manual Loads 0 Difficulty Rogue Special Mode None Game No. 465 Rogue 465 Adventurer 0 Explorer 0 Win Type - Total 11 Types 6/0/1/2/1/0/1/0/0/0 Lore% 87 Gallery% 83 Achievement% 70 Wizard Run 0 Options --------- Layout 0 ASCII 0 Keyboard 0 Movement Mouse Keybinds 0 Fullscreen 1 Font 18/X11 Map View 76x50 Zoom Use 0% Tactical HUD 1 Map Filters NONE Filters NONE Steam 1 RUN: 0ead3939-c640-4b4c-ab37-0c372fceacdc